[Event "EYTCC U12 Girls 2019"]
[Site "Pardubice"]
[Date "2019.07.14"]
[Round "4.24"]
[White "Szopa, Emilia"]
[Black "Karaivanova, Petya"]
[Result "1/2-1/2"]
[ECO "C50"]
[WhiteElo "1415"]
[BlackElo "1792"]
[Annotator "NA"]
[PlyCount "97"]
[EventDate "2019.07.11"]
[EventType "swiss"]
[EventCountry "CZE"]
[SourceTitle "playchess.com"]
[Source "ChessBase"]
[SourceQuality "1"]
[WhiteTeam "Poland"]
[BlackTeam "Bulgaria"]
[WhiteTeamCountry "POL"]
[BlackTeamCountry "BUL"]
[TimeControl "40/5400+30:1800+30"]

1. e4 {[%emt 0:00:00]} e5 {[%emt 0:00:00]} 2. Nf3 {[%emt 0:00:00]} Nc6 {[%emt 0:00:00]} 3. Bc4 {[%emt 0:00:00]} Nf6 {[%emt 0:00:00]} 4. d3 {[%emt 0:00:00]} Bc5 {[%emt 0:00:00]} 5. O-O {[%emt 0:00:08]} d6 {[%emt 0:00:07]} 6. c3 {[%emt 0:00:09]} O-O {[%emt 0:00:14]} 7. Bb3 {[%emt 0:00:27]} a6 {[%emt 0:00:48]} 8. Nbd2 {[%emt 0:00:28]} Re8 {[%emt 0:00:30]} 9. h3 {[%emt 0:01:13]} Bd7 {[%emt 0:00:41]} 10. Re1 {[%emt 0:00:41]} h6 {[%emt 0:01:28]} 11. Nf1 {[%emt 0:00:22]} b5 {[%emt 0:00:32]} 12. Ng3 {[%emt 0:02:14]} Bb6 {[%emt 0:00:47]} 13. Be3 {[%emt 0:05:57]} Bxe3 {[%emt 0:04:36]} 14. fxe3 {[%emt 0:00:44]} Na5 {[%emt 0:02:12]} 15. Bc2 {[%emt 0:01:35]} c5 {[%emt 0:01:30]} 16. d4 {[%emt 0:01:34]} Rc8 {[%emt 0:09:09]} 17. Nf5 {[%emt 0:03:55]} Bxf5 {[%emt 0:07:09]} 18. exf5 {[%emt 0:00:17]} Qc7 {[%emt 0:08:43]} 19. Rc1 {[%emt 0:03:42]} e4 {[%emt 0:06:22]} 20. Nd2 {[%emt 0:10:09]} c4 {[%emt 0:05:49]} 21. Nf1 {[%emt 0:08:45]} d5 {[%emt 0:01:02]} 22. Qe2 {[%emt 0:02:50]} Nc6 {[%emt 0:03:42]} 23. Qf2 {[%emt 0:02:33]} Ne7 {[%emt 0:01:08]} 24. Ng3 {[%emt 0:04:41]} a5 {[%emt 0:04:52]} 25. Bd1 {[%emt 0:02:40]} Nc6 {[%emt 0:05:38]} 26. Nh5 {[%emt 0:07:12]} Qd6 {[%emt 0:04:38]} 27. Qh4 {[%emt 0:04:21]} Nxh5 {[%emt 0:05:20]} 28. Bxh5 {[%emt 0:00:42]} Qe7 {[%emt 0:05:54]} 29. Qg3 {[%emt 0:06:23]} Qf6 {[%emt 0:02:19]} 30. Rf1 {[%emt 0:00:25]} b4 {[%emt 0:02:18]} 31. Kh1 {[%emt 0:08:17]} Rb8 {[%emt 0:02:30]} 32. Rf2 {[%emt 0:01:31]} Rb7 {[%emt 0:01:14]} 33. b3 {[%emt 0:08:55]} cxb3 {[%emt 0:02:35]} 34. axb3 {[%emt 0:00:32]} bxc3 {[%emt 0:01:38]} 35. Rxc3 {[%emt 0:00:21]} Reb8 {[%emt 0:00:59]} 36. Bxf7+ {[%emt 0:03:56]} Rxf7 {[%emt 0:03:56]} 37. Rxc6 {[%emt 0:00:30]} Qxc6 {[%emt 0:00:16]} 38. Qxb8+ {[%emt 0:00:11]} Rf8 {[%emt 0:00:21]} 39. Qg3 {[%emt 0:03:10]} Kh8 {[%emt 0:01:58]} 40. Kh2 {[%emt 0:04:48]} Qb6 {[%emt 0:05:17]} 41. Rf4 {[%emt 0:06:34]} Qxb3 {[%emt 0:04:49]} 42. f6 {[%emt 0:01:14]} Rxf6 {[%emt 0:06:44]} 43. Rxf6 {[%emt 0:02:02]} gxf6 {[%emt 0:00:09]} 44. Qd6 {[%emt 0:01:03]} Qxe3 {[%emt 0:07:52]} 45. Qf8+ {[%emt 0:01:07]} Kh7 {[%emt 0:00:05]} 46. Qf7+ {[%emt 0:00:21]} Kh8 {[%emt 0:00:16]} 47. Qf8+ {[%emt 0:00:10]} Kh7 {[%emt 0:00:08]} 48. Qf7+ {[%emt 0:00:17]} Kh8 {[%emt 0:00:05]} 49. Qf8+ {[%emt 0:00:39]} 1/2-1/2

[Event "EYTCC U12 Girls 2019"]
[Site "Pardubice"]
[Date "2019.07.15"]
[Round "5.17"]
[White "Siekanska, Maria"]
[Black "Mellor, Jessica"]
[Result "1/2-1/2"]
[ECO "D85"]
[WhiteElo "1561"]
[BlackElo "1663"]
[Annotator "NA"]
[PlyCount "75"]
[EventDate "2019.07.11"]
[EventType "swiss"]
[EventCountry "CZE"]
[SourceTitle "playchess.com"]
[Source "ChessBase"]
[SourceQuality "1"]
[WhiteTeam "Poland"]
[BlackTeam "England"]
[WhiteTeamCountry "POL"]
[BlackTeamCountry "ENG"]
[TimeControl "40/5400+30:1800+30"]

1. d4 {[%emt 0:00:00]} Nf6 {[%emt 0:00:00]} 2. c4 {[%emt 0:00:00]} g6 {[%emt 0:00:01]} 3. Nc3 {[%emt 0:00:00]} d5 {[%emt 0:00:20]} 4. cxd5 {[%emt 0:00:00]} Nxd5 {[%emt 0:00:11]} 5. e4 {[%emt 0:00:04]} Nxc3 {[%emt 0:00:14]} 6. bxc3 {[%emt 0:00:06]} Bg7 {[%emt 0:00:16]} 7. Be3 {[%emt 0:00:43]} c5 {[%emt 0:02:32]} 8. Qd2 {[%emt 0:01:43]} O-O {[%emt 0:04:19]} 9. Nf3 {[%emt 0:01:45]} b6 {[%emt 0:05:33]} 10. Rd1 {[%emt 0:08:51]} cxd4 {[%emt 0:07:40]} 11. cxd4 {[%emt 0:01:34]} Bb7 {[%emt 0:03:16]} 12. Bd3 {[%emt 0:03:12]} Nd7 {[%emt 0:05:04]} 13. h4 {[%emt 0:06:26]} Nf6 {[%emt 0:05:44]} 14. e5 {[%emt 0:02:40]} Nd5 {[%emt 0:10:25]} 15. Bh6 {[%emt 0:01:16]} f6 {[%emt 0:07:17]} 16. h5 {[%emt 0:02:23]} g5 {[%emt 0:05:52]} 17. Bxg7 {[%emt 0:02:50]} Kxg7 {[%emt 0:00:17]} 18. h6+ {[%emt 0:00:53]} Kh8 {[%emt 0:01:29]} 19. Nxg5 {[%emt 0:06:46]} fxg5 {[%emt 0:00:27]} 20. Qxg5 {[%emt 0:00:20]} Rg8 {[%emt 0:02:47]} 21. Qf5 {[%emt 0:00:44]} Rg6 {[%emt 0:00:39]} 22. Qf7 {[%emt 0:01:17]} Qg8 {[%emt 0:02:04]} 23. Bxg6 {[%emt 0:00:22]} Qxg6 {[%emt 0:00:51]} 24. Qxg6 {[%emt 0:00:30]} hxg6 {[%emt 0:00:06]} 25. O-O {[%emt 0:07:06]} Kh7 {[%emt 0:05:46]} 26. a4 {[%emt 0:03:42]} Kxh6 {[%emt 0:01:59]} 27. Rfe1 {[%emt 0:04:01]} e6 {[%emt 0:03:11]} 28. a5 {[%emt 0:02:09]} b5 {[%emt 0:01:32]} 29. f3 {[%emt 0:01:10]} a6 {[%emt 0:02:04]} 30. Kf2 {[%emt 0:00:45]} Kg7 {[%emt 0:02:02]} 31. Rc1 {[%emt 0:07:00]} Rc8 {[%emt 0:01:52]} 32. Rxc8 {[%emt 0:02:25]} Bxc8 {[%emt 0:00:28]} 33. Rc1 {[%emt 0:00:33]} Bd7 {[%emt 0:01:14]} 34. Ke2 {[%emt 0:04:25]} Nf4+ {[%emt 0:01:17]} 35. Kd2 {[%emt 0:00:48]} Nd5 {[%emt 0:00:18]} 36. g3 {[%emt 0:01:32]} Kf7 {[%emt 0:01:25]} 37. Rh1 {[%emt 0:06:24]} Kg7 {[%emt 0:00:12]} 38. Rc1 {[%emt 0:01:05]} 1/2-1/2

[Event "EYTCC U12 Girls 2019"]
[Site "Pardubice"]
[Date "2019.07.15"]
[Round "5.18"]
[White "Solovieva, Kristina"]
[Black "Szopa, Emilia"]
[Result "1/2-1/2"]
[ECO "B22"]
[WhiteElo "1469"]
[BlackElo "1415"]
[Annotator "NA"]
[PlyCount "116"]
[EventDate "2019.07.11"]
[EventType "swiss"]
[EventCountry "CZE"]
[SourceTitle "playchess.com"]
[Source "ChessBase"]
[SourceQuality "1"]
[WhiteTeam "England"]
[BlackTeam "Poland"]
[WhiteTeamCountry "ENG"]
[BlackTeamCountry "POL"]
[TimeControl "40/5400+30:1800+30"]

1. e4 {[%emt 0:00:00]} c5 {[%emt 0:00:00]} 2. c3 {[%emt 0:00:00]} d5 {[%emt 0:00:00]} 3. exd5 {[%emt 0:00:00]} Qxd5 {[%emt 0:00:00]} 4. d4 {[%emt 0:00:00]} e5 {[%emt 0:00:02]} 5. dxe5 {[%emt 0:00:00]} Qxe5+ {[%emt 0:01:12]} 6. Be3 {[%emt 0:00:00]} Nf6 {[%emt 0:00:34]} 7. Nf3 {[%emt 0:00:38]} Qc7 {[%emt 0:00:15]} 8. h3 {[%emt 0:02:03]} Be7 {[%emt 0:00:50]} 9. Bd3 {[%emt 0:03:04]} Nc6 {[%emt 0:01:58]} 10. Qc2 {[%emt 0:01:42]} O-O {[%emt 0:05:53]} 11. O-O {[%emt 0:05:34]} h6 {[%emt 0:03:57]} 12. Nbd2 {[%emt 0:10:26]} Nd5 {[%emt 0:06:48]} 13. Rfe1 {[%emt 0:04:18]} Nxe3 {[%emt 0:01:41]} 14. Rxe3 {[%emt 0:01:26]} Be6 {[%emt 0:02:18]} 15. Bc4 {[%emt 0:08:14]} Bxc4 {[%emt 0:05:09]} 16. Nxc4 {[%emt 0:02:16]} Qf4 {[%emt 0:08:04]} 17. Nce5 {[%emt 0:06:21]} Nxe5 {[%emt 0:07:11]} 18. Rxe5 {[%emt 0:00:44]} Bd6 {[%emt 0:01:48]} 19. Re3 {[%emt 0:00:29]} Rfe8 {[%emt 0:13:50]} 20. Rae1 {[%emt 0:00:56]} Rxe3 {[%emt 0:00:48]} 21. Rxe3 {[%emt 0:00:15]} g6 {[%emt 0:01:07]} 22. Qe4 {[%emt 0:00:48]} Qxe4 {[%emt 0:02:40]} 23. Rxe4 {[%emt 0:00:04]} Rd8 {[%emt 0:01:09]} 24. Kf1 {[%emt 0:02:12]} Bf8 {[%emt 0:05:35]} 25. Ke2 {[%emt 0:01:25]} Rd6 {[%emt 0:02:33]} 26. Ra4 {[%emt 0:03:01]} Rb6 {[%emt 0:03:48]} 27. b3 {[%emt 0:01:12]} Re6+ {[%emt 0:01:07]} 28. Kd3 {[%emt 0:01:09]} a6 {[%emt 0:00:12]} 29. Re4 {[%emt 0:00:48]} Rd6+ {[%emt 0:03:30]} 30. Ke2 {[%emt 0:01:46]} b5 {[%emt 0:03:15]} 31. c4 {[%emt 0:03:28]} Rb6 {[%emt 0:03:18]} 32. Nd2 {[%emt 0:05:21]} f6 {[%emt 0:02:50]} 33. g4 {[%emt 0:03:50]} Kf7 {[%emt 0:00:02]} 34. f3 {[%emt 0:07:36]} Bd6 {[%emt 0:00:59]} 35. cxb5 {[%emt 0:03:59]} axb5 {[%emt 0:00:39]} 36. a4 {[%emt 0:06:38]} f5 {[%emt 0:02:36]} 37. Re3 {[%emt 0:02:54]} Bf4 {[%emt 0:00:06]} 38. Rc3 {[%emt 0:01:47]} Re6+ {[%emt 0:00:07]} 39. Kd1 {[%emt 0:01:03]} Rd6 {[%emt 0:00:23]} 40. Rc2 {[%emt 0:01:34]} bxa4 {[%emt 0:00:15]} 41. bxa4 {[%emt 0:30:35]} Rd4 {[%emt 0:32:57]} 42. Ke2 {[%emt 0:06:08]} Bxd2 {[%emt 0:00:44]} 43. Rxd2 {[%emt 0:00:16]} Rxa4 {[%emt 0:00:20]} 44. gxf5 {[%emt 0:01:35]} gxf5 {[%emt 0:02:03]} 45. Rd5 {[%emt 0:00:47]} Kg6 {[%emt 0:00:19]} 46. Rxc5 {[%emt 0:00:59]} Ra2+ {[%emt 0:01:08]} 47. Kf1 {[%emt 0:00:43]} Rh2 {[%emt 0:01:13]} 48. Rc4 {[%emt 0:02:41]} Kh5 {[%emt 0:05:45]} 49. Kg1 {[%emt 0:00:00]} Rxh3 {[%emt 0:00:00]} 50. Kg2 {[%emt 0:00:00]} Rh4 {[%emt 0:00:00]} 51. Rc5 {[%emt 0:00:00]} Kg5 {[%emt 0:00:00]} 52. Kg3 {[%emt 0:00:00]} Rh1 {[%emt 0:00:00]} 53. f4+ {[%emt 0:00:00]} Kg6 {[%emt 0:00:00]} 54. Rc6+ {[%emt 0:00:00]} Kg7 {[%emt 0:00:00]} 55. Rc7+ {[%emt 0:00:00]} Kg6 56. Rc6+ Kf7 57. Rc7+ Ke6 58. Rc6+ Kd5 1/2-1/2

[Event "EYTCC U12 Girls 2019"]
[Site "Pardubice"]
[Date "2019.07.15"]
[Round "5.19"]
[White "Mikheeva, Galina"]
[Black "Ivanova, Dilyana"]
[Result "1-0"]
[ECO "B25"]
[WhiteElo "1792"]
[BlackElo "1734"]
[Annotator "NA"]
[PlyCount "83"]
[EventDate "2019.07.11"]
[EventType "swiss"]
[EventCountry "CZE"]
[SourceTitle "playchess.com"]
[Source "ChessBase"]
[SourceQuality "1"]
[WhiteTeam "Russia"]
[BlackTeam "Bulgaria"]
[WhiteTeamCountry "RUS"]
[BlackTeamCountry "BUL"]
[TimeControl "40/5400+30:1800+30"]

1. e4 {[%emt 0:00:00]} c5 {[%emt 0:00:00]} 2. Nc3 {[%emt 0:00:06]} Nc6 {[%emt 0:00:00]} 3. g3 {[%emt 0:00:04]} g6 {[%emt 0:00:00]} 4. Bg2 {[%emt 0:00:05]} Bg7 {[%emt 0:00:00]} 5. d3 {[%emt 0:00:03]} d6 {[%emt 0:00:07]} 6. f4 {[%emt 0:00:51]} e6 {[%emt 0:01:44]} 7. Nf3 {[%emt 0:00:07]} Nge7 {[%emt 0:00:45]} 8. O-O {[%emt 0:01:24]} O-O {[%emt 0:01:02]} 9. Bd2 {[%emt 0:03:03]} Rb8 {[%emt 0:02:35]} 10. Rb1 {[%emt 0:04:00]} b5 {[%emt 0:02:24]} 11. a3 {[%emt 0:04:49]} a5 {[%emt 0:09:11]} 12. a4 {[%emt 0:01:14]} b4 {[%emt 0:06:15]} 13. Nb5 {[%emt 0:00:47]} Ba6 {[%emt 0:04:22]} 14. c4 {[%emt 0:01:06]} Qd7 {[%emt 0:11:11]} 15. Be3 {[%emt 0:10:03]} Rfc8 {[%emt 0:16:00]} 16. g4 {[%emt 0:07:54]} f5 {[%emt 0:06:40]} 17. exf5 {[%emt 0:07:01]} exf5 {[%emt 0:00:35]} 18. g5 {[%emt 0:00:41]} Bb7 {[%emt 0:06:11]} 19. Qb3 {[%emt 0:01:50]} Ba8 {[%emt 0:12:46]} 20. Rfe1 {[%emt 0:05:14]} Nd8 {[%emt 0:04:14]} 21. d4 {[%emt 0:12:34]} Be4 {[%emt 0:04:05]} 22. Rbd1 {[%emt 0:05:08]} cxd4 {[%emt 0:03:33]} 23. Bxd4 {[%emt 0:01:00]} d5 {[%emt 0:04:24]} 24. Bxg7 {[%emt 0:00:49]} Kxg7 {[%emt 0:00:03]} 25. Ne5 {[%emt 0:00:53]} Qe6 {[%emt 0:00:46]} 26. Nd4 {[%emt 0:09:52]} Qa6 {[%emt 0:02:55]} 27. cxd5 {[%emt 0:01:28]} Bxg2 {[%emt 0:00:40]} 28. Kxg2 {[%emt 0:00:12]} Qd6 {[%emt 0:00:48]} 29. Nb5 {[%emt 0:00:45]} Rxb5 {[%emt 0:00:35]} 30. axb5 {[%emt 0:00:14]} Rc5 {[%emt 0:00:22]} 31. Nc4 {[%emt 0:18:26]} Qxf4 {[%emt 0:00:40]} 32. Rxe7+ {[%emt 0:00:56]} Kf8 {[%emt 0:00:02]} 33. Rde1 {[%emt 0:01:24]} Rxc4 {[%emt 0:00:49]} 34. Re8+ {[%emt 0:01:18]} Kg7 {[%emt 0:00:01]} 35. Qd3 {[%emt 0:01:18]} Rd4 {[%emt 0:00:40]} 36. Qg3 {[%emt 0:00:41]} Rd2+ {[%emt 0:00:50]} 37. R1e2 {[%emt 0:00:29]} Rxe2+ {[%emt 0:00:29]} 38. Rxe2 {[%emt 0:00:11]} Qc4 {[%emt 0:00:37]} 39. Qe5+ {[%emt 0:00:11]} Kg8 {[%emt 0:00:20]} 40. Qe8+ {[%emt 0:00:07]} Kg7 {[%emt 0:00:05]} 41. Re7+ {[%emt 0:30:09]} Nf7 {[%emt 0:30:04]} 42. Rxf7# {[%emt 0:00:06]} 1-0

[Event "EYTCC U12 Girls 2019"]
[Site "Pardubice"]
[Date "2019.07.15"]
[Round "5.20"]
[White "Karaivanova, Petya"]
[Black "Goriachkina, Oksana"]
[Result "1-0"]
[ECO "B14"]
[WhiteElo "1792"]
[BlackElo "1417"]
[Annotator "NA"]
[PlyCount "85"]
[EventDate "2019.07.11"]
[EventType "swiss"]
[EventCountry "CZE"]
[SourceTitle "playchess.com"]
[Source "ChessBase"]
[SourceQuality "1"]
[WhiteTeam "Bulgaria"]
[BlackTeam "Russia"]
[WhiteTeamCountry "BUL"]
[BlackTeamCountry "RUS"]
[TimeControl "40/5400+30:1800+30"]

1. e4 {[%emt 0:00:00]} c6 {[%emt 0:00:00]} 2. d4 {[%emt 0:00:00]} d5 {[%emt 0:00:00]} 3. exd5 {[%emt 0:00:00]} cxd5 {[%emt 0:00:02]} 4. c4 {[%emt 0:00:00]} Nf6 {[%emt 0:01:55]} 5. Nc3 {[%emt 0:00:01]} e6 {[%emt 0:00:36]} 6. Nf3 {[%emt 0:01:01]} Be7 {[%emt 0:00:31]} 7. Bd3 {[%emt 0:02:31]} dxc4 {[%emt 0:00:56]} 8. Bxc4 {[%emt 0:00:14]} O-O {[%emt 0:00:06]} 9. O-O {[%emt 0:01:13]} a6 {[%emt 0:00:55]} 10. Bd3 {[%emt 0:02:04]} b5 {[%emt 0:01:16]} 11. Re1 {[%emt 0:09:50]} Bb7 {[%emt 0:00:14]} 12. Be3 {[%emt 0:02:56]} Nbd7 13. Ne5 {[%emt 0:08:18]} Nxe5 {[%emt 0:03:00]} 14. dxe5 {[%emt 0:00:12]} Nd5 {[%emt 0:00:18]} 15. Qe2 {[%emt 0:09:00]} Nxc3 {[%emt 0:01:51]} 16. bxc3 {[%emt 0:00:07]} Qc7 {[%emt 0:00:15]} 17. Bd4 {[%emt 0:01:37]} Rfd8 {[%emt 0:01:02]} 18. Qe3 {[%emt 0:02:50]} Qd7 {[%emt 0:02:12]} 19. Rad1 {[%emt 0:02:05]} Bd5 {[%emt 0:01:28]} 20. Bb1 {[%emt 0:05:18]} Qc6 {[%emt 0:02:53]} 21. Qh3 {[%emt 0:05:14]} g6 {[%emt 0:01:36]} 22. Qg4 {[%emt 0:01:47]} Bf8 {[%emt 0:00:58]} 23. Rd3 {[%emt 0:02:06]} Bg7 {[%emt 0:01:02]} 24. Rh3 {[%emt 0:03:11]} Rac8 {[%emt 0:02:08]} 25. f4 {[%emt 0:03:21]} Qd7 {[%emt 0:10:11]} 26. Qh4 {[%emt 0:03:36]} h5 {[%emt 0:00:24]} 27. g4 {[%emt 0:03:51]} hxg4 {[%emt 0:01:42]} 28. Qxg4 {[%emt 0:00:31]} Qe7 {[%emt 0:01:13]} 29. Rg3 {[%emt 0:03:07]} Bc4 {[%emt 0:13:40]} 30. h4 {[%emt 0:07:49]} Qf8 {[%emt 0:00:44]} 31. h5 {[%emt 0:01:13]} Qe8 {[%emt 0:03:50]} 32. hxg6 {[%emt 0:00:49]} fxg6 {[%emt 0:00:06]} 33. Bxg6 {[%emt 0:00:12]} Qe7 {[%emt 0:00:31]} 34. f5 {[%emt 0:02:56]} exf5 {[%emt 0:00:25]} 35. Bxf5 {[%emt 0:00:24]} Rb8 {[%emt 0:00:57]} 36. e6 {[%emt 0:02:26]} Rb7 {[%emt 0:02:32]} 37. Qh5 {[%emt 0:03:57]} Rxd4 {[%emt 0:11:04]} 38. cxd4 {[%emt 0:03:25]} Kf8 {[%emt 0:01:17]} 39. Qg4 {[%emt 0:05:09]} Qd6 {[%emt 0:03:31]} 40. Re4 {[%emt 0:03:42]} Bxa2 {[%emt 0:05:21]} 41. Rf4 {[%emt 0:05:26]} Kg8 {[%emt 0:00:36]} 42. Qh4 {[%emt 0:03:50]} Qxf4 {[%emt 0:26:06]} 43. Qd8# {[%emt 0:00:56]} 1-0

[Event "EYTCC U12 Girls 2019"]
[Site "Pardubice"]
[Date "2019.07.15"]
[Round "5.21"]
[White "Buyuk, Ecrin Efsa"]
[Black "Zhou, Lepu Coco"]
[Result "1-0"]
[ECO "C68"]
[WhiteElo "1592"]
[BlackElo "1861"]
[Annotator "NA"]
[PlyCount "85"]
[EventDate "2019.07.11"]
[EventType "swiss"]
[EventCountry "CZE"]
[SourceTitle "playchess.com"]
[Source "ChessBase"]
[SourceQuality "1"]
[WhiteTeam "Turkey"]
[BlackTeam "Germany"]
[WhiteTeamCountry "TUR"]
[BlackTeamCountry "GER"]
[TimeControl "40/5400+30:1800+30"]

1. e4 {[%emt 0:00:00]} e5 {[%emt 0:00:00]} 2. Nf3 {[%emt 0:00:00]} Nc6 {[%emt 0:00:00]} 3. Bb5 {[%emt 0:00:02]} a6 {[%emt 0:00:36]} 4. Bxc6 {[%emt 0:00:13]} dxc6 {[%emt 0:00:47]} 5. Nc3 {[%emt 0:00:11]} Bd6 {[%emt 0:03:13]} 6. d4 {[%emt 0:01:21]} Qe7 {[%emt 0:05:22]} 7. dxe5 {[%emt 0:05:09]} Bxe5 {[%emt 0:00:48]} 8. Nxe5 {[%emt 0:00:33]} Qxe5 {[%emt 0:00:09]} 9. Be3 {[%emt 0:01:10]} Nf6 {[%emt 0:02:25]} 10. Qd4 {[%emt 0:02:49]} Qd6 {[%emt 0:06:52]} 11. Qxd6 {[%emt 0:03:48]} cxd6 {[%emt 0:00:08]} 12. O-O-O {[%emt 0:00:13]} Ke7 {[%emt 0:03:30]} 13. Rd4 {[%emt 0:22:22]} Be6 {[%emt 0:03:45]} 14. Rhd1 {[%emt 0:01:28]} Rad8 {[%emt 0:02:25]} 15. Bf4 {[%emt 0:07:05]} d5 {[%emt 0:03:07]} 16. Bg5 {[%emt 0:01:22]} c5 {[%emt 0:02:59]} 17. Bxf6+ {[%emt 0:02:06]} Kxf6 {[%emt 0:01:41]} 18. Nxd5+ {[%emt 0:01:26]} Bxd5 {[%emt 0:03:41]} 19. Rxd5 {[%emt 0:00:07]} Rxd5 {[%emt 0:00:18]} 20. Rxd5 {[%emt 0:00:09]} Re8 {[%emt 0:00:51]} 21. f3 {[%emt 0:00:21]} c4 {[%emt 0:00:46]} 22. Kd2 {[%emt 0:01:29]} Re6 {[%emt 0:02:10]} 23. a4 {[%emt 0:00:51]} Rc6 {[%emt 0:01:57]} 24. Kc3 {[%emt 0:00:09]} Ke7 {[%emt 0:05:59]} 25. Rd4 {[%emt 0:01:49]} Rh6 {[%emt 0:02:11]} 26. h3 {[%emt 0:01:57]} Rg6 {[%emt 0:00:55]} 27. Rd2 {[%emt 0:00:37]} Rb6 {[%emt 0:13:54]} 28. a5 {[%emt 0:02:02]} Rc6 {[%emt 0:01:52]} 29. Rd4 {[%emt 0:01:38]} Rg6 {[%emt 0:01:49]} 30. Rxc4 {[%emt 0:01:21]} Rxg2 {[%emt 0:00:38]} 31. Rc7+ {[%emt 0:00:06]} Ke8 {[%emt 0:00:16]} 32. Kd3 {[%emt 0:00:25]} Rg3 {[%emt 0:00:54]} 33. Ke3 {[%emt 0:00:20]} Rxh3 {[%emt 0:01:13]} 34. Rxb7 {[%emt 0:00:07]} Rh1 {[%emt 0:01:27]} 35. b4 {[%emt 0:00:38]} h5 {[%emt 0:00:53]} 36. b5 {[%emt 0:00:33]} Kd8 {[%emt 0:05:08]} 37. bxa6 {[%emt 0:00:30]} Kc8 {[%emt 0:00:40]} 38. Rb5 {[%emt 0:00:15]} Re1+ {[%emt 0:03:10]} 39. Kf2 {[%emt 0:00:36]} Rc1 {[%emt 0:03:05]} 40. a7 {[%emt 0:00:04]} Rxc2+ {[%emt 0:00:07]} 41. Kg3 {[%emt 0:30:03]} h4+ {[%emt 0:32:31]} 42. Kxh4 {[%emt 0:00:13]} g5+ {[%emt 0:00:16]} 43. Kg3 1-0

[Event "EYTCC U12 Girls 2019"]
[Site "Pardubice"]
[Date "2019.07.15"]
[Round "5.22"]
[White "Braeutigam, Katerina"]
[Black "Alagoz, Zumra Meryem"]
[Result "1-0"]
[ECO "B20"]
[WhiteElo "1837"]
[BlackElo "1310"]
[Annotator "NA"]
[PlyCount "125"]
[EventDate "2019.07.11"]
[EventType "swiss"]
[EventCountry "CZE"]
[SourceTitle "playchess.com"]
[Source "ChessBase"]
[SourceQuality "1"]
[WhiteTeam "Germany"]
[BlackTeam "Turkey"]
[WhiteTeamCountry "GER"]
[BlackTeamCountry "TUR"]
[TimeControl "40/5400+30:1800+30"]

1. e4 {[%emt 0:00:00]} c5 {[%emt 0:00:00]} 2. Be2 {[%emt 0:00:00]} Nc6 {[%emt 0:00:38]} 3. f4 {[%emt 0:00:02]} d6 {[%emt 0:01:59]} 4. Nc3 {[%emt 0:01:55]} g6 {[%emt 0:04:45]} 5. d3 {[%emt 0:01:26]} Bg7 {[%emt 0:02:30]} 6. Nf3 {[%emt 0:01:28]} Nf6 {[%emt 0:06:53]} 7. O-O {[%emt 0:01:59]} Bg4 {[%emt 0:14:45]} 8. Be3 {[%emt 0:02:00]} Bxf3 {[%emt 0:01:32]} 9. Bxf3 {[%emt 0:00:47]} O-O {[%emt 0:04:37]} 10. g4 {[%emt 0:02:36]} Nd4 {[%emt 0:07:50]} 11. Kh1 {[%emt 0:04:11]} Nxf3 {[%emt 0:05:52]} 12. Qxf3 {[%emt 0:01:57]} Qd7 {[%emt 0:01:21]} 13. Rg1 {[%emt 0:00:49]} h5 {[%emt 0:05:56]} 14. gxh5 {[%emt 0:04:02]} Nxh5 {[%emt 0:01:02]} 15. Rg2 {[%emt 0:02:10]} e6 {[%emt 0:10:27]} 16. Rag1 {[%emt 0:01:30]} Kh7 {[%emt 0:02:19]} 17. Qxh5+ {[%emt 0:25:18]} gxh5 {[%emt 0:01:23]} 18. Rxg7+ {[%emt 0:00:05]} Kh8 {[%emt 0:00:05]} 19. R7g5 {[%emt 0:00:10]} f6 {[%emt 0:02:04]} 20. Rxh5+ {[%emt 0:00:05]} Qh7 {[%emt 0:00:04]} 21. Rxh7+ {[%emt 0:00:21]} Kxh7 {[%emt 0:00:08]} 22. Nb5 {[%emt 0:00:35]} e5 {[%emt 0:11:09]} 23. Nxd6 {[%emt 0:01:11]} b6 {[%emt 0:00:13]} 24. Nf5 {[%emt 0:03:31]} Rg8 {[%emt 0:01:43]} 25. Rxg8 {[%emt 0:05:03]} Rxg8 {[%emt 0:00:06]} 26. fxe5 {[%emt 0:01:00]} fxe5 {[%emt 0:00:09]} 27. Ne7 {[%emt 0:02:00]} Re8 {[%emt 0:01:53]} 28. Nf5 {[%emt 0:11:17]} Rg8 {[%emt 0:00:29]} 29. Bf2 {[%emt 0:00:51]} c4 {[%emt 0:03:43]} 30. dxc4 {[%emt 0:03:08]} Rd8 {[%emt 0:01:26]} 31. Kg2 {[%emt 0:00:21]} Rd2 {[%emt 0:01:30]} 32. Ne3 {[%emt 0:00:09]} Kg6 {[%emt 0:00:53]} 33. b4 {[%emt 0:02:07]} Kg5 {[%emt 0:01:02]} 34. Kf3 {[%emt 0:00:26]} Rd8 {[%emt 0:00:38]} 35. h4+ {[%emt 0:00:52]} Kh5 {[%emt 0:00:14]} 36. c5 {[%emt 0:02:37]} bxc5 {[%emt 0:00:23]} 37. bxc5 {[%emt 0:00:07]} Rf8+ {[%emt 0:00:46]} 38. Nf5 {[%emt 0:03:44]} Rc8 {[%emt 0:01:51]} 39. Nd6 {[%emt 0:01:14]} Rc6 {[%emt 0:00:47]} 40. Nc4 {[%emt 0:03:55]} Re6 {[%emt 0:00:40]} 41. Na5 {[%emt 0:31:18]} Ra6 {[%emt 0:30:55]} 42. Be1 {[%emt 0:00:20]} Rf6+ {[%emt 0:00:29]} 43. Ke3 {[%emt 0:01:35]} Rf7 {[%emt 0:02:22]} 44. c6 {[%emt 0:00:36]} Rc7 {[%emt 0:00:16]} 45. Bb4 {[%emt 0:00:23]} Kxh4 {[%emt 0:00:42]} 46. Bd6 {[%emt 0:02:02]} Rc8 {[%emt 0:00:19]} 47. c7 {[%emt 0:00:25]} Kg5 {[%emt 0:00:53]} 48. Nc6 {[%emt 0:00:18]} Kf6 {[%emt 0:00:31]} 49. Nxa7 {[%emt 0:00:29]} Ra8 {[%emt 0:00:33]} 50. c8=Q {[%emt 0:00:10]} Rxc8 {[%emt 0:00:14]} 51. Nxc8 {[%emt 0:00:06]} Ke6 {[%emt 0:00:03]} 52. Bb8 {[%emt 0:00:46]} Kd7 {[%emt 0:00:05]} 53. Nb6+ {[%emt 0:00:15]} Ke6 {[%emt 0:00:13]} 54. a4 {[%emt 0:00:22]} Ke7 {[%emt 0:00:09]} 55. a5 {[%emt 0:00:14]} Ke6 {[%emt 0:00:16]} 56. a6 {[%emt 0:00:09]} Ke7 {[%emt 0:00:04]} 57. a7 {[%emt 0:00:08]} Ke6 {[%emt 0:00:01]} 58. a8=Q {[%emt 0:00:14]} Ke7 {[%emt 0:00:10]} 59. Qc6 {[%emt 0:00:30]} Kf7 {[%emt 0:00:07]} 60. Bxe5 {[%emt 0:01:12]} Ke7 {[%emt 0:00:11]} 61. Qf6+ {[%emt 0:02:14]} Ke8 {[%emt 0:00:07]} 62. Qg7 {[%emt 0:00:14]} Kd8 {[%emt 0:00:04]} 63. Qd7# {[%emt 0:00:07]} 1-0